bitfinex/quotes_SOLUSD_20220102
["timestamp","ask_amount","ask_price","bid_price","bid_amount"]
[1641162090595,9.0153,176.19,176.08,3.0672995]
[1641162090794,15.6813,176.19,176.08,3.0672995]
[1641162090995,8.1,176.18,176.08,3.0672995]
[1641162091195,8.5182,176.13,176.08,3.0672995]
[1641162091399,8.5182,176.13,176.07,29.49612713]
[1641162091996,8.5182,176.13,176.07,29.75612713]
[1641162093196,8.5182,176.13,176.07,0.26]
[1641162093397,8.5182,176.13,176.05,81.2024]
[1641162095299,8.5182,176.13,176.05,89.7205]
[1641162098904,8.5182,176.13,176.05,89.2205]
[1641162099409,8.5182,176.13,176.05,89.7205]
[1641162101415,8.5182,176.13,176.05,96.1325]
[1641162101715,1.61585474,176.17,176.05,96.1325]
[1641162102013,1.61585474,176.18,176.05,96.1325]
[1641162102811,8.516,176.18,176.07,3.0672995]
[1641162103011,8.516,176.18,176.1,8.5155]
[1641162103212,8.516,176.18,176.11,29.58127]
[1641162103414,1.2756,176.19,176.11,30.08127]
[1641162103615,1.2756,176.19,176.11,30.34127]
[1641162104116,1.2756,176.19,176.11,38.85647]
[1641162104316,1.2756,176.19,176.12,1.3018]
[1641162104514,1.2756,176.19,176.12,1.5618]
[1641162104714,1.2756,176.19,176.12,2.0618]
[1641162105818,1.2756,176.19,176.12,10.5764]
[1641162123197,1.2756,176.19,176.12,10.0764]
[1641162123897,9.7906,176.19,176.12,10.0764]
[1641162124399,9.7906,176.19,176.12,10.5764]
[1641162125801,9.7906,176.19,176.12,10.3164]
[1641162126197,9.7906,176.19,176.12,1.3018]
[1641162126399,9.7906,176.19,176.12,0.5]
[1641162126598,9.7906,176.19,176.11,38.09657]
[1641162126799,9.7906,176.19,176.11,30.08127]
[1641162127500,9.7906,176.19,176.11,30.34127]
[1641162130807,9.7906,176.19,176.11,40.11247]
[1641162132805,1.2756,176.19,176.11,40.11247]
[1641162142516,1.2756,176.19,176.11,39.61247]
[1641162144240,9.7906,176.19,176.11,39.61247]
[1641162144437,9.7906,176.19,176.11,40.11247]
[1641162148244,9.7906,176.19,176.11,39.61247]
[1641162150749,9.7906,176.19,176.11,31.09727]
[1641162153150,9.7906,176.19,176.11,31.59727]
[1641162153850,9.7906,176.19,176.11,40.11247]
[1641162161459,1.2756,176.19,176.11,40.11247]
[1641162162459,8.5143,176.21,176.11,40.11247]
[1641162166168,8.5135,176.23,176.11,40.11247]
[1641162166471,8.5135,176.23,176.11,48.21247]
[1641162166472,9.0135,176.23,176.11,48.21247]
[1641162167670,9.0135,176.23,176.12,3.0672995]
[1641162167871,9.0135,176.23,176.15,8.5129]
[1641162168072,9.0135,176.23,176.15,8.7729]
[1641162168371,9.0135,176.23,176.15,9.2729]
[1641162169893,0.5,176.23,176.15,9.2729]
[1641162170105,0.5,176.24,176.15,9.2729]
[1641162170304,1.61585474,176.26,176.15,9.2729]
[1641162170703,11.02815474,176.27,176.15,9.2729]
[1641162170903,11.02815474,176.27,176.16,1.2986]
[1641162171203,8.5118,176.26,176.18,25.62036273]
[1641162171604,9.0118,176.26,176.18,25.62036273]
[1641162172205,9.0118,176.26,176.18,26.12036273]
[1641162172405,9.0118,176.26,176.18,25.62036273]
[1641162172607,9.0118,176.26,176.18,25.88036273]
[1641162173807,9.0118,176.26,176.18,27.19546273]
[1641162175412,9.0118,176.26,176.18,27.69546273]
[1641162175610,9.0118,176.26,176.18,27.19546273]
[1641162176310,9.0118,176.26,176.18,25.88036273]
[1641162179212,8.5118,176.26,176.18,25.88036273]
[1641162182016,8.5118,176.26,176.18,25.62036273]
[1641162182214,8.5118,176.26,176.18,34.13226273]
[1641162183117,8.5118,176.26,176.18,25.62036273]
[1641162183318,8.5118,176.26,176.18,25.88036273]
[1641162184517,8.5118,176.26,176.18,26.38036273]
[1641162184717,8.5118,176.26,176.18,25.88036273]
[1641162186319,8.5118,176.26,176.18,26.38036273]
[1641162193953,8.5118,176.26,176.18,26.12036273]
[1641162195557,8.5118,176.26,176.18,26.38036273]
[1641162199463,8.5118,176.26,176.18,25.88036273]
[1641162201866,8.5118,176.26,176.18,26.38036273]
[1641162202068,8.5118,176.26,176.18,25.88036273]
[1641162204068,8.5118,176.26,176.18,26.38036273]
[1641162204467,8.5118,176.26,176.18,25.88036273]
[1641162207071,8.5118,176.26,176.18,26.38036273]
[1641162207272,8.5118,176.26,176.18,25.88036273]
[1641162208775,8.5118,176.26,176.18,26.38036273]
[1641162208974,8.5118,176.26,176.18,25.88036273]
[1641162209175,8.5118,176.26,176.18,34.39236273]
[1641162210179,8.5118,176.26,176.18,34.89236273]
[1641162210577,8.5118,176.26,176.18,26.12036273]
[1641162211881,8.5118,176.26,176.18,26.38036273]
[1641162214082,8.5118,176.26,176.18,25.88036273]
[1641162214485,10.20817249,176.28,176.18,25.88036273]
[1641162214782,1.69707249,176.28,176.18,34.89226273]
[1641162215003,0.08121775,176.28,176.18,34.89226273]
[1641162215203,0.08121775,176.28,176.19,1.2392]
[1641162215404,0.08121775,176.28,176.19,1.7392]
[1641162215604,0.08121775,176.28,176.19,1.9992]
[1641162215802,0.08121775,176.28,176.22,8.5101]
[1641162216003,0.08121775,176.28,176.22,8.7701]
[1641162216402,0.08121775,176.28,176.22,9.2701]
[1641162216803,8.59181775,176.28,176.22,9.2701]
[1641162217005,8.59181775,176.28,176.22,0.26]
[1641162217402,8.59181775,176.28,176.21,9.2707]
[1641162219306,0.08121775,176.28,176.21,9.2707]
[1641162227217,8.59191775,176.28,176.21,9.2707]
[1641162227414,8.59191775,176.28,176.21,8.7707]
[1641162227616,8.59191775,176.28,176.21,9.2707]
[1641162227817,8.59191775,176.28,176.21,8.7707]
[1641162228016,8.59191775,176.28,176.21,0.5]
[1641162228417,8.59191775,176.28,176.2,9.0112]
[1641162228817,8.59191775,176.28,176.2,0.5]
[1641162229316,8.59191775,176.28,176.19,1.7392]
[1641162229516,8.59191775,176.28,176.19,9.7509]
[1641162229721,8.59191775,176.28,176.19,10.2509]
[1641162229921,9.09191775,176.28,176.19,1.7392]
[1641162230717,9.09191775,176.28,176.19,1.9992]
[1641162233121,8.59191775,176.28,176.19,1.9992]
[1641162234722,9.86971775,176.28,176.19,1.9992]
[1641162234927,10.36971775,176.28,176.19,1.9992]
[1641162236226,9.86971775,176.28,176.19,1.9992]
[1641162236425,10.36971775,176.28,176.19,1.9992]
[1641162237128,9.86971775,176.28,176.19,1.9992]
[1641162237324,10.36971775,176.28,176.19,1.9992]
[1641162244055,11.98557249,176.28,176.19,1.9992]
[1641162248058,11.48557249,176.28,176.19,1.9992]
[1641162248257,11.98557249,176.28,176.19,1.9992]
[1641162249259,11.98557249,176.28,176.19,1.4992]
[1641162251961,10.36971775,176.28,176.19,1.4992]
[1641162252563,10.36971775,176.28,176.19,1.9992]
[1641162252764,10.36971775,176.28,176.19,1.4992]
[1641162254164,11.98557249,176.28,176.19,1.4992]
[1641162254966,10.36971775,176.28,176.19,1.4992]
[1641162255666,10.36971775,176.28,176.19,1.9992]
[1641162256068,10.36971775,176.28,176.19,1.4992]
[1641162256668,10.36971775,176.28,176.19,1.9992]
[1641162256868,9.86971775,176.28,176.19,1.4992]
[1641162257368,9.86971775,176.28,176.19,1.9992]
[1641162258169,8.59191775,176.28,176.19,10.511]
[1641162267978,8.59191775,176.28,176.19,9.751]
[1641162268279,9.09191775,176.28,176.19,1.2392]
[1641162269077,9.09191775,176.28,176.18,103.93416273]
[1641162269478,9.09191775,176.28,176.18,104.19416273]
[1641162269778,10.30281775,176.28,176.18,104.19416273]
[1641162273082,9.80281775,176.28,176.18,112.70646273]
[1641162273282,10.30281775,176.28,176.18,112.70646273]
[1641162273884,10.30281775,176.28,176.18,113.20646273]
[1641162289120,10.30281775,176.28,176.19,1.3079]
[1641162289520,10.30281775,176.28,176.19,1.5679]
[1641162291027,10.30281775,176.28,176.19,1.3079]
[1641162291423,10.30281775,176.28,176.19,1.8079]
[1641162294529,10.30281775,176.28,176.19,1.5679]
[1641162297833,10.30281775,176.28,176.19,1.3079]
[1641162298036,10.30281775,176.28,176.19,1.8079]
[1641162298635,10.30281775,176.28,176.19,1.3079]
[1641162301939,10.30281775,176.28,176.19,0.5]
[1641162302739,10.30281775,176.28,176.18,26.12036273]
[1641162303339,10.30281775,176.28,176.18,26.38036273]
[1641162303739,9.80281775,176.28,176.18,26.12036273]
[1641162303940,10.30281775,176.28,176.18,24.12036273]
[1641162304541,10.30281775,176.28,176.18,24.38036273]
[1641162304742,10.30281775,176.28,176.18,24.12036273]
[1641162305843,9.80281775,176.28,176.18,24.38036273]
[1641162306443,17.90281775,176.28,176.18,24.38036273]
[1641162306844,17.90281775,176.28,176.18,25.59226273]
[1641162307443,18.40281775,176.28,176.18,25.59226273]
[1641162309570,18.40281775,176.28,176.18,25.33226273]
[1641162310271,17.90281775,176.28,176.18,25.33226273]
[1641162311174,18.40281775,176.28,176.18,25.59226273]
[1641162316980,18.40281775,176.28,176.14,78.3995995]
[1641162317279,19.82951143,176.28,176.16,0.5]
[1641162317681,1.61585474,176.27,176.16,0.5]
[1641162317881,8.5157,176.19,176.12,3.5672995]
[1641162318082,8.5157,176.19,176.13,22.53179666]
[1641162318481,8.5157,176.19,176.13,23.03179666]
[1641162324889,8.5157,176.19,176.13,22.53179666]
[1641162333397,9.0157,176.19,176.13,22.53179666]
[1641162333598,8.5157,176.19,176.13,22.53179666]
[1641162333798,9.0157,176.19,176.13,22.53179666]
[1641162334099,8.5157,176.19,176.13,22.53179666]
[1641162334498,9.0157,176.19,176.13,22.53179666]
[1641162335021,8.5157,176.19,176.13,22.53179666]
[1641162335929,9.0157,176.19,176.13,22.53179666]
[1641162336128,8.5157,176.19,176.13,22.53179666]
[1641162336329,8.5157,176.19,176.13,22.79179666]
[1641162349485,8.5157,176.19,176.13,22.53179666]
[1641162350987,8.5157,176.19,176.13,22.79179666]
[1641162351790,8.5157,176.19,176.13,23.29179666]
[1641162352089,8.5157,176.19,176.13,22.79179666]
[1641162352290,8.5157,176.19,176.13,23.29179666]
[1641162353889,8.5157,176.19,176.13,31.80669666]
[1641162367706,8.5157,176.19,176.13,31.30669666]
[1641162375146,8.5157,176.19,176.13,31.04669666]
[1641162376646,8.5157,176.19,176.13,31.30669666]
[1641162381053,8.5157,176.19,176.13,31.04669666]
[1641162382452,8.5157,176.19,176.13,31.30669666]
[1641162387961,8.5157,176.19,176.13,30.80669666]
[1641162388360,8.5157,176.19,176.13,30.20669666]
[1641162390361,8.5157,176.19,176.13,30.70669666]
[1641162405902,8.5157,176.19,176.13,30.20669666]
[1641162406605,8.5157,176.19,176.13,30.70669666]
[1641162407305,8.5157,176.19,176.13,30.20669666]
[1641162407504,8.5157,176.19,176.13,30.70669666]
[1641162408306,8.5157,176.19,176.13,30.20669666]
[1641162408504,8.5157,176.19,176.13,30.70669666]
[1641162408808,8.5157,176.19,176.13,30.20669666]
[1641162409405,8.5157,176.19,176.13,30.70669666]
[1641162409805,8.5157,176.19,176.13,30.20669666]
[1641162410405,9.0157,176.19,176.13,21.69179666]
[1641162410706,8.5157,176.19,176.13,21.69179666]
[1641162412109,8.5157,176.19,176.13,22.19179666]
[1641162412405,8.5157,176.19,176.13,21.69179666]
[1641162413007,8.5157,176.19,176.13,22.19179666]
[1641162413208,8.5157,176.19,176.13,21.69179666]
[1641162416110,29.6368,176.23,176.13,30.70649666]
[1641162416111,1.253,176.23,176.13,30.70649666]
[1641162416510,1.753,176.23,176.13,30.70649666]
[1641162416710,1.253,176.23,176.13,30.70649666]
[1641162416910,1.753,176.23,176.14,1.2055]
[1641162417111,1.753,176.23,176.14,1.4655]
[1641162417310,1.253,176.23,176.14,1.9655]
[1641162417712,8.514,176.21,176.14,10.4795]
[1641162421818,8.5136,176.22,176.14,10.4795]
[1641162423521,8.5136,176.22,176.14,10.2195]
[1641162423724,8.5136,176.22,176.14,9.7195]
[1641162423922,8.5136,176.22,176.14,1.7055]
[1641162424124,8.5136,176.22,176.14,1.2055]
[1641162424623,8.5136,176.22,176.13,29.94639666]
[1641162424823,9.0136,176.22,176.13,21.93179666]
[1641162425048,9.0136,176.22,176.13,21.69179666]
[1641162425248,8.5136,176.22,176.13,21.69179666]
[1641162425447,9.0136,176.22,176.13,21.69179666]
[1641162425647,8.5136,176.22,176.13,21.69179666]
[1641162426949,9.0136,176.22,176.13,21.69179666]
[1641162427553,9.0136,176.22,176.13,21.43179666]
[1641162429061,9.0136,176.22,176.13,21.69179666]
[1641162431958,9.0136,176.22,176.13,21.43179666]
[1641162432960,10.62945474,176.22,176.13,21.43179666]
[1641162457619,10.12945474,176.22,176.13,21.69179666]
[1641162458222,8.5136,176.22,176.13,21.69179666]
[1641162459426,9.0136,176.22,176.13,21.69179666]
[1641162460526,9.0136,176.22,176.13,22.90179666]
[1641162462225,8.5136,176.22,176.13,31.41639666]
[1641162462450,8.5136,176.22,176.13,31.91639666]
[1641162463250,28.38,176.26,176.13,31.91639666]
[1641162463452,8.513,176.24,176.13,33.34309034]
[1641162465453,8.513,176.24,176.13,36.41038984]
[1641162467154,8.5122,176.25,176.13,36.41038984]
[1641162468255,8.5122,176.25,176.13,44.51038984]
[1641162468956,8.5122,176.25,176.14,3.0672995]
[1641162469356,8.5122,176.25,176.19,8.5121]
[1641162469564,8.5122,176.25,176.2,24.67404163]
[1641162469959,8.5122,176.25,176.2,25.43404163]
[1641162470560,8.5117,176.26,176.2,33.94574163]
[1641162470960,9.0117,176.26,176.2,33.94574163]
[1641162474665,9.0117,176.26,176.2,25.17404163]
[1641162475965,9.0117,176.26,176.2,25.43404163]
[1641162481869,9.0117,176.26,176.2,0.76]
[1641162482068,9.0117,176.26,176.19,9.2722]
[1641162485273,9.0117,176.26,176.19,8.5122]
[1641162485473,8.5117,176.26,176.19,8.5122]
[1641162486075,8.5117,176.26,176.2,1.5975504]
[1641162487074,8.5117,176.26,176.19,10.1097504]
[1641162487274,8.5117,176.26,176.19,10.3697504]
[1641162488978,8.5117,176.26,176.19,8.7722]
[1641162490185,37.83744189,176.35,176.19,8.5122]
[1641162490385,8.1,176.34,176.18,1.5975504]
[1641162490583,8.5129,176.26,176.18,1.5975504]
[1641162491184,8.5129,176.26,176.17,8.5127]
[1641162491383,8.5129,176.26,176.15,2.47904218]
[1641162491585,8.5129,176.26,176.15,2.97904218]
[1641162491985,8.5129,176.26,176.15,3.23904218]
[1641162492284,8.5129,176.26,176.15,2.042]
[1641162492887,8.5129,176.26,176.15,10.5555]
[1641162495691,8.5129,176.26,176.16,1.27292621]
[1641162495891,8.5129,176.26,176.18,8.5125]
[1641162496092,8.5129,176.26,176.18,8.7725]
[1641162496512,8.5129,176.26,176.18,9.2725]
[1641162496711,8.5129,176.26,176.18,8.7725]
[1641162496915,8.5129,176.26,176.18,9.2725]
[1641162510129,8.5129,176.26,176.18,8.7725]
[1641162511430,8.5129,176.26,176.18,9.2725]
[1641162542726,8.5129,176.26,176.19,1.27723811]
[1641162542925,8.5129,176.26,176.2,8.5116]
[1641162543325,8.5129,176.26,176.2,9.2716]
[1641162549935,8.5129,176.26,176.16,1.2094]
[1641162551137,8.5129,176.26,176.16,1.9694]
[1641162551337,8.5129,176.26,176.16,1.4694]
[1641162551538,8.5129,176.26,176.16,1.9694]
[1641162551737,8.5129,176.26,176.17,8.5124]
[1641162551937,8.5129,176.26,176.17,9.0124]
[1641162552139,8.5129,176.26,176.17,9.2724]
[1641162569175,8.5129,176.26,176.2,0.284]
[1641162621481,9.0129,176.26,176.2,0.284]
[1641162623780,8.5129,176.26,176.2,0.284]
[1641162624889,9.0129,176.26,176.2,0.284]
[1641162626682,8.5129,176.26,176.2,0.284]
[1641162627582,9.0129,176.26,176.2,0.284]
[1641162628183,1.2098,176.27,176.26,40.9871]
[1641162628384,0.32651127,176.27,176.26,40.9871]
[1641162629883,8.83931127,176.27,176.26,40.9871]
[1641162646424,8.5128,176.27,176.26,43.6927887]
[1641162646623,8.5128,176.27,176.26,46.72498866]
[1641162660939,8.83931127,176.27,176.26,40.9871]
[1641162668754,8.42188835,176.27,176.26,46.72498866]
[1641162668953,8.42188835,176.27,176.26,43.6927887]
[1641162669256,8.74839962,176.27,176.26,40.9871]
[1641162672979,8.42188835,176.27,176.26,46.72498866]
[1641162677086,8.74839962,176.27,176.26,40.9871]
[1641162680793,8.42188835,176.27,176.26,40.9871]
[1641162682096,8.42188835,176.27,176.26,46.72498866]
[1641162684599,8.74839962,176.27,176.26,40.9871]
[1641162686702,8.74839962,176.27,176.26,46.72498866]
[1641162686903,8.42188835,176.27,176.26,46.72498866]
[1641162691229,8.74839962,176.27,176.26,46.72498866]
[1641162691433,8.74839962,176.27,176.26,40.9871]
[1641162695234,8.42188835,176.27,176.26,40.9871]
[1641162695435,8.42188835,176.27,176.26,46.72498866]
[1641162697837,8.42188835,176.27,176.26,40.9871]
[1641162698736,8.42188835,176.27,176.26,46.72498866]
[1641162702643,8.42188835,176.27,176.26,40.9871]
[1641162702844,8.74839962,176.27,176.26,40.9871]
[1641162706450,8.42188835,176.27,176.26,40.9871]
[1641162707554,8.42188835,176.27,176.26,46.72498866]
[1641162707951,8.5109,176.29,176.26,46.72498866]
[1641162708752,1.60268132,176.32,176.26,46.72498866]
[1641162709352,28.3705,176.33,176.26,46.72498866]
[1641162709753,8.51,176.31,176.26,46.72498866]
[1641162713556,8.51,176.31,176.26,40.9871]
[1641162714356,8.51,176.31,176.25,1.276]
[1641162714856,8.51,176.31,176.25,1.776]
[1641162715057,8.51,176.31,176.25,1.276]
[1641162715657,8.51,176.31,176.25,1.776]
[1641162715857,8.51,176.31,176.25,1.276]
[1641162716457,8.51,176.31,176.25,3.38967434]
[1641162716657,8.51,176.31,176.25,2.88967434]
[1641162717157,8.51,176.31,176.25,1.276]
[1641162718861,8.51,176.31,176.25,1.776]
[1641162719264,8.51,176.31,176.25,1.276]
[1641162719461,0.5,176.33,176.31,26.49]
[1641162719661,0.32651127,176.32,176.31,26.49]
[1641162720664,8.83621127,176.32,176.31,26.49]
[1641162720864,9.33621127,176.32,176.31,26.49]
[1641162721865,8.83621127,176.32,176.31,26.49]
[1641162724868,8.5097,176.32,176.31,26.49]
[1641162726294,8.5097,176.32,176.31,32.22788866]
[1641162726491,8.5097,176.32,176.31,29.52219996]
[1641162726692,8.5097,176.32,176.31,26.49]
[1641162727595,8.5097,176.32,176.31,32.22788866]
[1641162727795,8.5097,176.32,176.31,26.49]
[1641162728399,8.83621127,176.32,176.31,26.49]
[1641162729495,9.33621127,176.32,176.31,26.49]
[1641162729896,8.83621127,176.32,176.31,26.49]
[1641162730901,9.33621127,176.32,176.31,26.49]
[1641162731599,8.83621127,176.32,176.31,26.49]
[1641162735001,9.33621127,176.32,176.31,26.49]
[1641162735203,8.83621127,176.32,176.31,26.49]
[1641162736004,8.5097,176.32,176.31,29.52219996]
[1641162736203,8.5097,176.32,176.31,26.49]
[1641162737101,8.5097,176.32,176.25,1.276]
[1641162737502,8.5097,176.32,176.25,1.776]
[1641162738003,8.5097,176.32,176.25,1.276]
[1641162738703,8.5097,176.32,176.25,1.776]
[1641162739203,8.5097,176.32,176.25,1.276]
[1641162739703,8.5097,176.32,176.25,1.776]
[1641162740002,8.5097,176.32,176.25,1.276]
[1641162740405,8.5097,176.32,176.25,1.776]
[1641162740804,8.5097,176.32,176.25,1.276]
[1641162742005,8.5097,176.32,176.25,1.776]
[1641162742208,8.5097,176.32,176.25,1.276]
[1641162742607,36.4681,176.34,176.32,11.4903]
[1641162742806,0.32651127,176.33,176.32,11.4903]
[1641162743911,8.83611127,176.33,176.32,11.4903]
[1641162744309,9.33611127,176.33,176.32,11.4903]
[1641162747410,9.33611127,176.33,176.25,76.7307]
[1641162747610,9.33611127,176.33,176.26,8.5083]
[1641162748009,9.33611127,176.33,176.26,9.2683]
[1641162748212,9.33611127,176.33,176.26,9.0083]
[1641162748412,9.33611127,176.33,176.26,0.5]
[1641162748612,9.33611127,176.33,176.25,77.2307]
[1641162748813,9.33611127,176.33,176.25,76.7307]
[1641162749015,9.33611127,176.33,176.25,77.2307]
[1641162749211,9.33611127,176.33,176.25,85.7395]
[1641162750510,9.33611127,176.33,176.25,85.9995]
[1641162752712,36.4633,176.37,176.33,0.66388873]
[1641162753513,8.5084,176.35,176.33,0.66388873]
[1641162754314,9.0084,176.35,176.33,0.66388873]
[1641162784485,9.0084,176.35,176.26,1.7773]
[1641162787111,9.0084,176.35,176.26,10.286]
[1641162791319,9.0084,176.35,176.26,10.546]
[1641162794621,9.0084,176.35,176.27,10.07539761]
[1641162795026,9.0084,176.35,176.27,10.83539761]
[1641162796025,9.0084,176.35,176.27,9.2683]
[1641162798826,9.0084,176.35,176.28,1.56709761]
[1641162799026,9.0084,176.35,176.29,8.5073]
[1641162800427,9.0084,176.35,176.29,10.07439761]
[1641162801029,9.0084,176.35,176.29,10.57439761]
[1641162801328,9.0084,176.35,176.29,9.0073]
[1641162802432,8.5084,176.35,176.29,9.0073]
[1641162804431,9.0084,176.35,176.29,9.0073]
[1641162804629,8.5084,176.35,176.29,9.0073]
[1641162808035,1.60268132,176.39,176.29,9.2673]
[1641162808438,2.10268132,176.39,176.29,9.2673]
[1641162808640,0.5,176.39,176.29,10.83439761]
[1641162808936,8.5063,176.37,176.32,8.506]
[1641162809439,9.0063,176.37,176.32,8.766]
[1641162810843,0.5,176.37,176.32,8.766]
[1641162811269,9.0057,176.39,176.32,8.766]
[1641162812381,9.0057,176.39,176.32,9.266]
[1641162812576,9.0057,176.39,176.32,8.766]
[1641162813377,9.0057,176.39,176.32,9.266]
[1641162825387,9.0057,176.39,176.32,0.26]
[1641162825586,9.0057,176.39,176.31,8.7664]
[1641162825785,9.0057,176.39,176.31,9.2664]
[1641162825985,10.60838132,176.39,176.31,9.2664]
[1641162827893,10.60838132,176.39,176.31,8.7664]
[1641162828094,10.60838132,176.39,176.31,9.2664]
[1641162830016,10.60838132,176.39,176.31,0.76]
[1641162830214,10.60838132,176.39,176.31,0.26]
[1641162830415,10.60838132,176.39,176.3,9.2668]
[1641162836733,1.60268132,176.38,176.3,9.2668]
[1641162836929,8.507,176.36,176.3,9.2668]
[1641162844240,8.41613474,176.36,176.3,9.2668]
[1641162850566,8.41613474,176.36,176.3,0.76]
[1641162850972,8.41613474,176.36,176.29,9.2674]
[1641162893935,8.41613474,176.36,176.29,9.0074]
[1641162895441,8.41613474,176.36,176.29,9.2674]
[1641162902979,8.5064,176.37,176.29,9.2674]
[1641162903380,9.0064,176.37,176.29,9.2674]
[1641162903581,8.5064,176.37,176.29,9.2674]
[1641162905483,29.95748132,176.41,176.29,9.2674]
[1641162905484,8.5058,176.38,176.29,9.2674]
[1641162906486,29.95448132,176.43,176.29,9.2674]
[1641162906687,8.5054,176.39,176.3,1.3004]
[1641162906989,9.0054,176.39,176.33,8.5054]
[1641162907188,8.5054,176.39,176.33,8.5054]
[1641162907387,8.5054,176.39,176.33,9.2654]
[1641162918306,8.5054,176.39,176.33,9.0054]
[1641162919510,8.5054,176.39,176.33,9.2654]
[1641162923238,8.0054,176.39,176.33,9.2654]
[1641162926040,8.505,176.4,176.33,9.2654]
[1641162926440,9.005,176.4,176.33,9.2654]
[1641162926843,8.505,176.4,176.33,9.2654]
[1641162927443,8.505,176.4,176.33,0.5]
[1641162927648,8.505,176.4,176.31,8.5064]
[1641162927844,8.505,176.4,176.31,9.0064]
[1641162928943,8.005,176.4,176.31,9.2664]
[1641162929444,8.505,176.4,176.31,9.2664]
[1641162930245,8.005,176.4,176.31,9.2664]
[1641162930946,8.505,176.4,176.32,1.2479]
[1641162931144,8.505,176.4,176.33,8.5053]
[1641162931546,8.505,176.4,176.33,9.2653]
[1641162933548,8.005,176.4,176.33,9.2653]
[1641162934347,8.505,176.4,176.33,9.2653]
[1641162937055,8.005,176.4,176.33,9.2653]
[1641162937854,8.505,176.4,176.33,9.2653]
[1641162939055,8.005,176.4,176.33,9.2653]
[1641162939755,8.505,176.4,176.33,9.2653]
[1641162940457,8.005,176.4,176.33,9.2653]
[1641162940856,8.505,176.4,176.33,9.2653]
[1641162941258,8.005,176.4,176.33,9.2653]
[1641162942259,8.505,176.4,176.33,9.2653]
[1641162942461,8.005,176.4,176.33,9.2653]
[1641162942861,8.505,176.4,176.33,9.2653]
[1641162943261,8.005,176.4,176.33,9.2653]
[1641162943860,8.505,176.4,176.33,9.2653]
[1641162944861,8.005,176.4,176.33,9.2653]
[1641162945560,8.505,176.4,176.33,9.2653]
[1641162945762,8.005,176.4,176.33,9.2653]
[1641162947062,8.505,176.4,176.33,9.2653]
[1641162947262,8.005,176.4,176.33,9.2653]
[1641162947861,8.505,176.4,176.33,9.2653]
[1641162948063,8.005,176.4,176.33,9.2653]
[1641162949363,8.505,176.4,176.33,9.2653]
[1641162949562,8.005,176.4,176.33,9.2653]
[1641162952767,8.005,176.4,176.33,9.0053]
[1641162953971,8.005,176.4,176.33,9.2653]
[1641162954869,8.505,176.4,176.33,9.2653]
[1641162955071,8.005,176.4,176.33,9.2653]
[1641162955472,8.505,176.4,176.33,0.5]
[1641162955672,8.505,176.4,176.3,8.1]
[1641162955872,8.505,176.4,176.31,0.5]
[1641162956380,8.505,176.4,176.3,8.6]
[1641162956774,8.505,176.4,176.3,17.1069]
[1641162956972,8.505,176.4,176.3,17.3669]
[1641162978628,8.505,176.4,176.3,8.86]
[1641162981536,8.505,176.4,176.3,10.4670354]
[1641162983031,8.005,176.4,176.3,10.4670354]
[1641162983231,8.505,176.4,176.3,10.4670354]
[1641162985633,8.505,176.4,176.3,2.3670354]
[1641162987132,8.505,176.4,176.3,1.8670354]
[1641162987133,8.005,176.4,176.3,1.8670354]
[1641162990472,8.005,176.4,176.31,1.6070354]
[1641162990868,8.005,176.4,176.31,1.8670354]
[1641162991070,8.005,176.4,176.31,0.26]
[1641162991471,8.005,176.4,176.27,84.29353566]
[1641162991672,8.005,176.4,176.28,3.18433566]
[1641162991870,8.005,176.4,176.31,8.506]
[1641162992070,8.005,176.4,176.31,8.766]
[1641162993273,8.005,176.4,176.32,1.2763]
[1641162993471,8.005,176.4,176.32,1.5363]
[1641162995072,8.005,176.4,176.32,10.0423]
[1641163006184,8.005,176.4,176.34,1.59816361]